bitfinex/quotes_SOLUSD_20250406
["timestamp","ask_amount","ask_price","bid_price","bid_amount"]
[1743977869357,12.9,107.44,107.4,0.28432314]
[1743977869546,18.79181043,107.47,107.43,67.10976306]
[1743977869777,12.9,107.46,107.44,67.10976306]
[1743977869981,12.9,107.46,107.4,67.3940862]
[1743977869982,12.9,107.46,107.45,67.10976306]
[1743977870215,12.9,107.46,107.43,26.0]
[1743977870381,12.9,107.46,107.45,67.10976306]
[1743977870706,12.9,107.46,107.43,93.10976306]
[1743977871015,12.9,107.46,107.44,9.3075]
[1743977871704,12.9,107.46,107.45,67.10976306]
[1743977871907,12.9,107.46,107.44,9.3075]
[1743977872106,0.14216157,107.53,107.45,67.3940862]
[1743977872278,12.96,107.52,107.48,26.0]
[1743977872476,12.96,107.52,107.48,93.10976306]
[1743977872789,12.96,107.52,107.51,67.10976306]
[1743977872994,12.96,107.52,107.49,116.36666306]
[1743977873190,18.79181043,107.51,107.45,29.7937]
[1743977873490,18.79181043,107.51,107.46,9.3057]
[1743977873687,0.28432314,107.5,107.45,82.94356306]
[1743977873910,18.64964886,107.48,107.45,15.8338]
[1743977874205,19.07613357,107.51,107.45,82.94356306]
[1743977874376,18.79181043,107.51,107.47,67.10976306]
[1743977874579,85.90157349,107.51,107.45,106.21016306]
[1743977874783,18.79181043,107.51,107.46,67.10976306]
[1743977875109,18.79181043,107.51,107.47,9.3049]
[1743977875713,67.25192463,107.49,107.42,6.2688]
[1743977875889,0.42648471,107.49,107.43,67.10976306]
[1743977876218,0.42648471,107.49,107.42,6.2688]
[1743977876219,18.64964886,107.46,107.42,6.2688]
[1743977876511,12.98,107.45,107.44,67.10976306]
[1743977876705,31.62964886,107.49,107.44,67.10976306]
[1743977876904,31.62964886,107.49,107.45,67.10976306]
[1743977877084,31.62964886,107.49,107.46,9.3057]
[1743977877802,31.62964886,107.49,107.46,76.41546306]
[1743977878521,12.98,107.49,107.47,67.10976306]
[1743977878727,12.98,107.49,107.46,99.67986306]
[1743977879024,12.98,107.49,107.48,9.304]
[1743977879909,26.619,107.59,107.48,76.41376306]
[1743977880236,85.90157349,107.55,107.5,67.10976306]
[1743977880414,67.25192463,107.55,107.49,67.10976306]
[1743977880721,18.79181043,107.53,107.48,76.41376306]
[1743977881389,0.14216157,107.53,107.48,9.304]
[1743977881590,12.9,107.52,107.48,76.41376306]
[1743977882319,0.063,107.57,107.49,6.4877]
[1743977882496,32.09481043,107.57,107.52,67.10976306]
[1743977882689,67.10976306,107.55,107.49,6.4877]
[1743977882891,18.79181043,107.54,107.49,73.59746306]
[1743977883214,18.64964886,107.55,107.5,67.10976306]
[1743977883515,18.64964886,107.55,107.51,67.10976306]
[1743977883823,18.79181043,107.56,107.49,6.4877]
[1743977884010,18.79181043,107.56,107.53,9.2997]
[1743977884195,18.64964886,107.56,107.53,9.2997]
[1743977884594,0.14216157,107.55,107.49,6.4877]
[1743977884799,0.14216157,107.55,107.51,67.10976306]
[1743977885418,18.64964886,107.56,107.51,67.10976306]
[1743977885808,18.64964886,107.56,107.52,67.10976306]
[1743977886010,18.64964886,107.56,107.5,23.2558]
[1743977886207,18.64964886,107.56,107.51,67.10976306]
[1743977886407,18.64964886,107.56,107.52,67.10976306]
[1743977886728,31.78964886,107.56,107.52,67.10976306]
[1743977887025,31.78964886,107.56,107.51,99.66476306]
[1743977887239,67.10976306,107.52,107.47,9.3049]
[1743977887404,18.64964886,107.49,107.44,9.3075]
[1743977887722,13.12,107.51,107.44,32.5763]
[1743977887925,18.79181043,107.5,107.45,67.10976306]
[1743977888108,13.12,107.51,107.47,67.10976306]
[1743977888314,18.64964886,107.5,107.44,32.5763]
[1743977888621,98.91941192,107.5,107.44,99.68606306]
[1743977888819,18.64964886,107.53,107.49,67.10976306]
[1743977889121,18.64964886,107.53,107.5,67.10976306]
[1743977889431,13.16,107.54,107.52,67.10976306]
[1743977889606,13.16,107.54,107.49,32.3136]
[1743977889805,13.16,107.54,107.52,67.10976306]
[1743977890005,0.20516157,107.57,107.49,54.4412]
[1743977890224,18.64964886,107.55,107.5,76.41206306]
[1743977890437,18.85481043,107.57,107.52,67.10976306]
[1743977890623,85.96457349,107.57,107.51,67.10976306]
[1743977890803,85.96457349,107.57,107.52,67.10976306]
[1743977891004,18.85481043,107.57,107.5,32.5574]
[1743977891220,18.71264886,107.57,107.54,67.10976306]
[1743977891531,85.82241192,107.57,107.51,67.10976306]
[1743977891736,18.71264886,107.57,107.53,67.10976306]
[1743977892103,0.063,107.57,107.55,67.10976306]
[1743977892302,0.063,107.58,107.56,67.10976306]
[1743977892608,0.0001,107.58,107.57,93.3940862]
[1743977892806,0.0001,107.58,107.57,160.50384926]
[1743977893211,0.0001,107.58,107.57,26.0]
[1743977893411,0.0001,107.58,107.57,93.3940862]
[1743977894011,0.0001,107.58,107.57,121.48209663]
[1743977894219,0.0001,107.58,107.57,102.40596306]
[1743977894526,0.0001,107.58,107.54,9.2988]
[1743977894723,18.64974886,107.58,107.54,76.40856306]
[1743977895036,85.75951192,107.58,107.53,9.2993]
[1743977895202,85.75951192,107.58,107.51,67.10976306]
[1743977895203,0.42648471,107.57,107.51,67.10976306]
[1743977895402,0.42648471,107.57,107.5,32.5581]
[1743977895403,13.12,107.56,107.55,67.10976306]
[1743977896053,13.12,107.56,107.55,76.40776306]
[1743977896230,13.12,107.56,107.54,67.10976306]
[1743977896432,13.12,107.56,107.55,26.0]
[1743977896611,0.0001,107.58,107.55,93.10976306]
[1743977896815,0.0001,107.58,107.52,9.3005]
[1743977897347,86.18589663,107.57,107.49,6.1728]
[1743977897504,18.79181043,107.54,107.5,9.3019]
[1743977897711,13.12,107.53,107.51,67.10976306]
[1743977897908,13.12,107.53,107.49,9.3029]
[1743977898134,67.3940862,107.56,107.5,26.0]
[1743977898449,0.28432314,107.52,107.46,15.6909]
[1743977898605,0.14216157,107.51,107.47,67.10976306]
[1743977898810,18.64964886,107.51,107.46,15.6909]
[1743977899032,13.14,107.5,107.46,82.80066306]
[1743977899237,18.79181043,107.49,107.46,67.10976306]
[1743977899540,18.64964886,107.47,107.42,67.10976306]
[1743977899740,18.64964886,107.45,107.41,9.3101]
[1743977899916,31.82964886,107.45,107.4,76.42026306]
[1743977900114,13.18,107.45,107.41,67.10976306]
[1743977900312,13.18,107.45,107.43,26.0]
[1743977900516,0.14216157,107.47,107.43,26.0]
[1743977900747,18.64964886,107.48,107.45,67.10976306]
[1743977900926,18.64964886,107.48,107.44,67.10976306]
[1743977901114,13.16,107.49,107.46,67.10976306]
[1743977901309,13.16,107.49,107.48,67.10976306]
[1743977901548,13.16,107.54,107.48,67.10976306]
[1743977901727,18.64964886,107.53,107.47,6.2826]
[1743977902252,13.16,107.54,107.51,67.10976306]
[1743977902429,80.26976306,107.54,107.5,9.3023]
[1743977902747,18.79181043,107.53,107.48,76.41366306]
[1743977902911,18.64964886,107.53,107.48,9.3039]
[1743977903113,0.14216157,107.52,107.48,9.3039]
[1743977903437,0.14216157,107.5,107.45,67.10976306]
[1743977903618,31.76964886,107.49,107.44,76.41726306]
[1743977903817,31.76964886,107.49,107.45,67.10976306]
[1743977904042,13.12,107.49,107.47,93.10976306]
[1743977904226,13.12,107.49,107.48,76.41376306]
[1743977904645,13.12,107.49,107.47,9.3045]
[1743977905152,31.74964886,107.53,107.48,67.10976306]
[1743977905325,18.79181043,107.52,107.47,9.3045]
[1743977905529,13.1,107.53,107.49,67.10976306]
[1743977905843,18.79181043,107.55,107.51,67.10976306]
[1743977905844,0.14216157,107.55,107.51,67.10976306]
[1743977906069,0.0001,107.58,107.53,67.10976306]
[1743977906215,13.1,107.57,107.54,9.2988]
[1743977906410,18.64964886,107.56,107.5,49.2552]
[1743977906616,18.64964886,107.56,107.52,67.10976306]
[1743977906912,0.14216157,107.55,107.51,67.10976306]
[1743977907111,18.64964886,107.56,107.53,67.10976306]
[1743977907350,18.64964886,107.56,107.5,0.28432314]
[1743977907651,18.64964886,107.56,107.53,67.10976306]
[1743977907865,13.1,107.57,107.53,67.10976306]
[1743977908039,13.1,107.57,107.56,67.10976306]
[1743977908233,0.0001,107.58,107.55,26.0]
[1743977908432,0.0001,107.58,107.57,67.10976306]
[1743977908861,0.0001,107.58,107.55,26.0]
[1743977909366,0.0001,107.58,107.55,67.10976306]
[1743977910258,0.0001,107.58,107.56,9.2971]
[1743977910663,0.0001,107.58,107.52,23.2514]
[1743977910837,0.0001,107.58,107.55,67.10976306]
[1743977911133,0.0001,107.58,107.54,67.10976306]
[1743977911338,0.0001,107.58,107.55,67.10976306]
[1743977911835,0.0001,107.58,107.57,67.10976306]
[1743977912171,0.0001,107.58,107.57,9.2962]
[1743977912454,0.0001,107.58,107.57,76.40596306]
[1743977912664,13.5601,107.58,107.56,9.2967]
[1743977912868,13.5601,107.58,107.55,9.298]
[1743977913239,13.5601,107.58,107.56,67.10976306]
[1743977913596,0.0001,107.58,107.57,93.10976306]
[1743977914269,0.0001,107.58,107.57,102.40596306]
[1743977914454,0.0001,107.58,107.57,102.6902862]
[1743977914650,0.0001,107.58,107.57,102.40596306]
[1743977914862,0.0001,107.58,107.57,188.59185969]
[1743977915068,0.063,107.63,107.61,26.0]
[1743977915387,0.063,107.63,107.62,93.10976306]
[1743977915758,0.063,107.63,107.59,6.2781]
[1743977916248,13.58,107.62,107.6,67.10976306]
[1743977916576,13.58,107.62,107.61,67.10976306]
[1743977916776,13.58,107.62,107.57,23.52492314]
[1743977916777,13.58,107.62,107.6,67.10976306]
[1743977916974,13.58,107.62,107.57,23.2406]
[1743977917147,13.58,107.62,107.59,67.10976306]
[1743977917350,13.58,107.62,107.6,67.10976306]
[1743977917562,13.58,107.62,107.61,67.10976306]
[1743977917846,0.063,107.63,107.61,67.10976306]
[1743977918050,0.063,107.63,107.61,26.0]
[1743977918263,0.063,107.63,107.59,67.10976306]
[1743977918453,0.063,107.63,107.61,67.10976306]
[1743977918678,0.063,107.63,107.58,67.10976306]
[1743977918856,0.063,107.63,107.61,67.10976306]
[1743977919259,0.063,107.63,107.6,67.10976306]
[1743977919461,0.063,107.63,107.59,26.0]
[1743977919676,0.063,107.63,107.6,67.10976306]
[1743977919979,85.96457349,107.63,107.57,67.10976306]
[1743977920177,0.14216157,107.59,107.55,76.40736306]
[1743977920353,32.33181043,107.59,107.55,76.40736306]
[1743977920549,32.33181043,107.59,107.55,9.2976]
[1743977920784,99.44157349,107.59,107.55,9.2976]
[1743977920980,32.33181043,107.59,107.55,76.40736306]
[1743977921482,32.18964886,107.59,107.55,76.40736306]
[1743977921855,13.54,107.59,107.57,67.10976306]
[1743977922057,13.54,107.59,107.55,9.2976]
[1743977922254,18.64964886,107.58,107.55,67.10976306]
[1743977922454,18.64964886,107.58,107.54,67.10976306]
[1743977922881,18.64964886,107.58,107.53,76.40946306]
[1743977923062,18.64964886,107.58,107.56,67.10976306]
[1743977923255,18.64964886,107.58,107.55,67.10976306]
[1743977923461,13.54,107.59,107.56,67.10976306]
[1743977924282,0.14216157,107.65,107.58,67.10976306]
[1743977924479,13.42,107.64,107.61,67.10976306]
[1743977924979,13.42,107.64,107.6,67.10976306]
[1743977925162,18.71264886,107.63,107.56,23.2415]
[1743977925360,18.71264886,107.63,107.59,67.10976306]
[1743977926167,18.71264886,107.63,107.6,9.2936]
[1743977926379,0.063,107.63,107.61,67.10976306]
[1743977926579,0.14216157,107.62,107.58,26.0]
[1743977926970,0.14216157,107.62,107.58,93.10976306]
[1743977927169,86.18589663,107.62,107.56,9.2971]
[1743977927681,86.18589663,107.62,107.56,76.40686306]
[1743977928062,86.18589663,107.6,107.56,9.2971]
[1743977928387,18.64964886,107.58,107.53,9.2997]
[1743977928591,0.14216157,107.57,107.53,9.2997]
[1743977928889,0.14216157,107.57,107.53,76.40946306]
[1743977929865,0.14216157,107.53,107.49,9.3031]
[1743977930065,13.24,107.53,107.49,9.3031]
[1743977930286,13.24,107.53,107.5,67.10976306]
[1743977930589,13.24,107.53,107.49,9.3031]
[1743977930785,13.24,107.53,107.49,76.41286306]
[1743977930981,18.79181043,107.52,107.48,67.13976306]
[1743977931194,18.79181043,107.52,107.48,9.3337]
[1743977931398,85.90157349,107.52,107.48,9.3337]
[1743977931704,18.79181043,107.5,107.48,0.03]
[1743977931995,18.79181043,107.49,107.48,0.03]
[1743977932203,0.14216157,107.49,107.48,0.03]
[1743977933496,13.24,107.53,107.48,67.13976306]
[1743977933676,18.79181043,107.52,107.48,0.03]
[1743977933977,18.64964886,107.52,107.48,93.13976306]
[1743977934163,18.64964886,107.52,107.48,67.13976306]
[1743977934367,0.14216157,107.51,107.48,9.3338]
[1743977934599,18.64964886,107.5,107.48,0.03]
[1743977935595,18.64964886,107.5,107.48,9.334]
[1743977935800,0.28432314,107.54,107.48,76.44376306]
[1743977936110,18.64964886,107.5,107.48,0.03]
[1743977936670,19.07613357,107.52,107.48,0.03]
[1743977936871,13.1,107.53,107.5,67.10976306]
[1743977937083,18.64964886,107.52,107.48,0.03]
[1743977937296,13.1,107.53,107.5,67.10976306]
[1743977937493,18.79181043,107.52,107.48,0.03]
[1743977937774,0.14216157,107.51,107.48,0.03]
[1743977938992,67.10976306,107.49,107.48,0.03]
[1743977939319,106.18589663,107.49,107.48,0.03]
[1743977939604,19.07613357,107.48,107.45,0.03]
[1743977939810,86.18589663,107.46,107.45,0.03]
[1743977939973,19.07613357,107.46,107.45,0.03]
[1743977940175,86.18589663,107.46,107.45,0.03]
[1743977940490,19.07613357,107.44,107.43,0.03]
[1743977940814,20.0,107.43,107.39,0.063]
[1743977940976,32.15613357,107.42,107.39,0.063]
[1743977941175,86.18589663,107.4,107.39,0.063]
[1743977941980,19.07613357,107.4,107.39,0.063]
[1743977942214,86.18589663,107.4,107.39,0.063]
[1743977942391,0.14216157,107.38,107.37,0.03]
[1743977942580,39.07613357,107.37,107.36,0.03]
[1743977942779,0.14216157,107.33,107.27,99.73756306]
[1743977942992,86.18589663,107.33,107.22,81.54195093]
[1743977943198,67.25192463,107.28,107.23,76.43546306]
[1743977943397,13.06,107.27,107.26,67.10976306]
[1743977943674,18.64964886,107.29,107.26,67.10976306]
[1743977944281,0.14216157,107.28,107.23,9.3257]
[1743977944512,0.14216157,107.28,107.23,99.74976306]
[1743977944689,0.42648471,107.28,107.24,67.10976306]
[1743977944910,67.10976306,107.29,107.24,67.10976306]
[1743977945111,18.64964886,107.29,107.25,67.10976306]
[1743977945314,18.64964886,107.29,107.26,67.10976306]
[1743977945511,18.64964886,107.29,107.23,32.64]
[1743977945512,0.42648471,107.28,107.23,76.43546306]
[1743977945707,18.64964886,107.29,107.23,9.3257]
[1743977946032,18.64964886,107.29,107.25,67.10976306]
[1743977946344,18.64964886,107.29,107.23,32.64]
[1743977946345,0.14216157,107.28,107.23,32.64]
[1743977946510,0.14216157,107.28,107.24,67.10976306]
[1743977946907,0.14216157,107.26,107.23,9.3257]
[1743977947110,13.04,107.25,107.21,67.10976306]
[1743977947327,18.64964886,107.24,107.22,26.0]
[1743977947532,18.79181043,107.24,107.2,67.10976306]
[1743977948018,18.64964886,107.24,107.21,67.10976306]
[1743977948335,18.64964886,107.24,107.19,32.6522]
[1743977948506,13.04,107.25,107.23,9.3257]
[1743977949013,18.64964886,107.24,107.23,9.3257]
[1743977949217,18.64964886,107.24,107.16,9.3318]
[1743977949218,0.42648471,107.23,107.16,9.3318]
[1743977949415,0.42648471,107.23,107.16,99.77116306]
[1743977949606,0.14216157,107.23,107.19,67.10976306]
[1743977949805,85.75941192,107.24,107.17,0.14216157]
[1743977950030,0.14216157,107.23,107.19,67.10976306]
[1743977950328,0.42648471,107.23,107.16,9.3318]
[1743977950632,0.42648471,107.23,107.15,1.5721]
[1743977950633,0.14216157,107.2,107.15,76.44216306]
[1743977950820,14.1,107.19,107.15,76.44216306]
[1743977951154,14.1,107.19,107.15,9.3324]
[1743977951308,18.64964886,107.18,107.15,9.3324]
[1743977951511,0.14216157,107.17,107.13,9.3344]
[1743977951820,18.64964886,107.18,107.14,67.10976306]
[1743977952017,67.25192463,107.17,107.13,9.3344]
[1743977952201,0.14216157,107.17,107.13,9.3344]
[1743977952401,18.79181043,107.17,107.13,76.44416306]
[1743977953236,0.14216157,107.15,107.12,9.3651]
[1743977953433,18.64964886,107.16,107.12,9.3651]
[1743977953434,14.16,107.14,107.12,9.3651]
[1743977953733,14.16,107.13,107.12,9.3653]
[1743977954119,14.16,107.13,107.12,0.03]
[1743977955022,14.16,107.13,107.12,67.13976306]
[1743977955724,14.14,107.18,107.12,67.13976306]
[1743977955913,14.14,107.18,107.12,0.03]
[1743977956106,14.14,107.18,107.16,67.10976306]
[1743977956310,14.14,107.18,107.17,67.10976306]
[1743977956616,14.14,107.18,107.17,9.3309]
[1743977956817,14.14,107.18,107.17,76.44066306]
[1743977957544,14.12,107.22,107.17,99.76806306]
[1743977957714,32.76964886,107.22,107.17,32.6583]
[1743977957919,32.76964886,107.22,107.19,67.10976306]
[1743977958633,1.5158,107.26,107.17,32.6583]
[1743977958634,375.5704,107.29,107.21,67.10976306]
[1743977958834,14.06,107.28,107.22,76.43636306]
[1743977959137,14.06,107.28,107.26,67.10976306]
[1743977959343,14.06,107.28,107.25,26.0]
[1743977959518,14.06,107.28,107.27,67.10976306]
[1743977959724,14.04,107.32,107.27,67.10976306]
[1743977960024,14.04,107.32,107.25,26.0]
[1743977960025,14.04,107.32,107.3,67.10976306]
[1743977960336,0.14216157,107.31,107.28,67.10976306]
[1743977960542,0.14216157,107.31,107.26,67.10976306]
[1743977960748,18.79181043,107.31,107.26,76.43286306]
[1743977961345,18.79181043,107.31,107.28,67.10976306]
[1743977961521,14.0,107.34,107.28,67.10976306]
[1743977961726,0.14216157,107.33,107.29,26.0]
[1743977961949,0.14216157,107.33,107.29,93.10976306]
[1743977962126,0.14216157,107.33,107.3,67.10976306]
[1743977962330,0.14216157,107.31,107.26,9.3231]
[1743977962534,18.64964886,107.27,107.23,9.3257]
[1743977962827,18.64964886,107.25,107.22,9.3266]
[1743977963240,18.64964886,107.25,107.21,67.10976306]
[1743977963447,0.14216157,107.24,107.2,32.6491]
[1743977963749,0.42648471,107.24,107.19,9.3289]
[1743977963928,0.14216157,107.22,107.19,9.3289]
[1743977964123,18.64964886,107.2,107.18,76.43946306]
[1743977964438,18.64964886,107.2,107.18,9.3297]
[1743977964822,0.14216157,107.22,107.18,67.10976306]
[1743977965029,18.64964886,107.2,107.17,9.3307]
[1743977965253,13.94,107.21,107.18,67.10976306]
[1743977965457,13.94,107.21,107.19,67.10976306]
[1743977965960,13.94,107.21,107.17,32.6581]
[1743977966123,13.94,107.21,107.2,67.10976306]
[1743977968843,18.64964886,107.2,107.15,26.0]
[1743977969045,0.14216157,107.19,107.12,79.3765]
[1743977969346,0.42648471,107.19,107.15,67.10976306]
[1743977969537,0.42648471,107.19,107.12,79.3765]
[1743977969743,0.42648471,107.19,107.12,32.7036]
[1743977970046,67.53624777,107.17,107.12,9.3653]
[1743977970268,67.53624777,107.17,107.12,76.47506306]
[1743977970269,0.14216157,107.15,107.12,76.47506306]
[1743977970466,0.14216157,107.15,107.12,9.3653]
[1743977970823,0.42648471,107.15,107.12,0.03]
[1743977971351,0.42648471,107.13,107.12,0.03]
[1743977971730,19.07613357,107.13,107.12,0.03]
[1743977972350,13.98,107.15,107.12,0.03]
[1743977972644,18.64964886,107.14,107.12,0.03]
[1743977972856,13.98,107.15,107.12,0.03]
[1743977973158,18.64964886,107.14,107.12,0.03]
[1743977973649,18.64964886,107.14,107.12,67.10644582]
[1743977973826,13.98,107.15,107.11,32.6765]
[1743977974022,13.98,107.15,107.14,67.10976306]
[1743977974231,0.14216157,107.18,107.14,67.10976306]
[1743977974428,0.14216157,107.18,107.11,32.6765]
[1743977974633,13.96,107.19,107.14,26.0]
[1743977974925,13.96,107.19,107.18,9.33]
[1743977975122,13.96,107.19,107.18,76.43976306]
[1743977977051,13.96,107.19,107.18,9.33]
[1743977977961,13.96,107.19,107.18,76.43976306]
[1743977978134,67.10976306,107.23,107.18,99.76496306]
[1743977978135,13.84,107.23,107.18,99.76496306]
[1743977978342,18.64964886,107.22,107.2,67.10976306]
[1743977979155,13.8,107.24,107.21,76.43716306]
[1743977979532,13.8,107.24,107.22,67.10976306]
[1743977979729,0.14216157,107.22,107.2,9.3281]
[1743977980073,18.64964886,107.23,107.2,9.3281]
[1743977980231,0.14216157,107.22,107.19,9.3292]
[1743977980733,0.42648471,107.22,107.18,9.3297]
[1743977980946,0.14216157,107.22,107.19,67.10976306]
[1743977981255,18.64964886,107.23,107.19,67.10976306]
[1743977981437,18.64964886,107.21,107.12,56.0119]
[1743977981641,0.14216157,107.2,107.17,67.10976306]
[1743977981838,18.64964886,107.21,107.18,67.10976306]
[1743977982157,18.64964886,107.21,107.19,67.10976306]
[1743977982749,18.64964886,107.21,107.16,67.10976306]
[1743977982952,18.64964886,107.21,107.19,9.3292]
[1743977983460,0.14216157,107.2,107.15,9.3327]
[1743977983648,0.14216157,107.18,107.15,76.44246306]
[1743977983845,13.62,107.17,107.15,9.3327]
[1743977984169,0.14216157,107.23,107.16,134.21952612]
[1743977984371,18.64964886,107.22,107.19,67.10976306]
[1743977984756,18.64964886,107.22,107.2,67.10976306]
[1743977985278,18.64964886,107.22,107.2,76.43796306]
[1743977985571,21.6408,107.27,107.21,67.10976306]
[1743977985870,32.37181043,107.26,107.21,67.10976306]
[1743977986068,87.10976306,107.25,107.2,9.3282]
[1743977986371,0.28432314,107.23,107.18,67.10976306]
[1743977986570,0.28432314,107.23,107.19,67.10976306]
[1743977987059,0.28432314,107.23,107.19,9.3292]
[1743977987262,83.3408,107.27,107.22,67.10976306]
[1743977987263,1.6408,107.27,107.22,67.10976306]
[1743977987447,32.33181043,107.26,107.21,67.10976306]
[1743977987772,0.14216157,107.26,107.24,67.10976306]
[1743977987946,13.52,107.27,107.24,67.10976306]
[1743977988273,1.6606,107.31,107.26,67.10976306]
[1743977988566,13.52,107.3,107.27,67.10976306]
[1743977988775,0.14216157,107.28,107.22,67.10976306]
[1743977988946,13.52,107.3,107.27,67.10976306]
[1743977989145,18.64964886,107.29,107.26,76.43246306]
[1743977989454,13.52,107.3,107.28,67.10976306]
[1743977989969,18.64964886,107.31,107.29,67.10976306]
[1743977990168,0.14216157,107.32,107.29,67.10976306]
[1743977990345,18.79181043,107.32,107.29,67.10976306]
[1743977990540,18.79181043,107.32,107.31,67.10976306]
[1743977990541,18.64964886,107.32,107.31,67.10976306]
[1743977990744,0.063,107.35,107.31,67.10976306]
[1743977990970,0.063,107.35,107.34,67.10976306]
[1743977991147,0.063,107.35,107.34,76.42586306]
[1743977992372,0.063,107.35,107.34,143.53562612]
[1743977992583,0.063,107.35,107.34,76.42586306]
[1743977992943,0.0001,107.35,107.34,143.53562612]
[1743977993146,0.0001,107.35,107.34,143.81994926]
[1743977993345,0.063,107.37,107.34,143.81994926]
[1743977993346,0.063,107.41,107.37,26.0]
[1743977993652,0.063,107.41,107.4,67.10976306]
[1743977993851,18.71264886,107.41,107.34,146.29716306]
[1743977994167,18.71264886,107.41,107.38,67.10976306]
[1743977994545,0.14216157,107.4,107.37,67.10976306]
[1743977994767,18.71264886,107.41,107.37,67.10976306]
[1743977994944,0.14216157,107.4,107.37,67.10976306]
[1743977995352,0.42648471,107.38,107.33,9.317]
[1743977995571,18.64964886,107.36,107.33,76.42676306]
[1743977995880,13.3,107.37,107.35,67.10976306]
[1743977996058,18.64964886,107.36,107.33,9.317]
[1743977996254,18.64964886,107.36,107.34,67.10976306]
[1743977996447,13.3,107.37,107.35,67.10976306]
[1743977996649,26.0,107.4,107.36,67.10976306]
[1743977996871,18.64964886,107.39,107.36,67.10976306]
[1743977997173,13.26,107.4,107.38,67.10976306]
[1743977997352,18.64964886,107.39,107.33,9.317]
[1743977997554,18.64964886,107.39,107.35,67.10976306]
[1743977998062,18.64964886,107.39,107.36,67.10976306]
[1743977998585,13.26,107.4,107.38,67.10976306]
[1743977998781,13.26,107.4,107.39,67.10976306]
[1743977998989,13.26,107.4,107.34,67.10976306]
[1743977999145,13.26,107.4,107.37,67.10976306]
[1743977999349,13.26,107.4,107.38,67.10976306]
[1743977999564,13.223,107.41,107.39,67.10976306]
[1743977999774,0.063,107.41,107.4,67.10976306]
[1743978000179,0.063,107.41,107.37,6.3117]
[1743978000484,0.063,107.41,107.35,9.3153]
[1743978000773,18.933972,107.4,107.35,76.42506306]
[1743978001073,0.14216157,107.4,107.37,67.10976306]
[1743978001278,18.996972,107.41,107.37,76.42256306]
[1743978001477,0.14216157,107.4,107.36,67.10976306]
[1743978001659,0.14216157,107.4,107.35,76.42466306]
[1743978001978,0.14216157,107.39,107.35,9.3149]
[1743978002171,0.14216157,107.37,107.34,76.42556306]
[1743978002376,13.1,107.38,107.36,67.10976306]
[1743978002552,13.08,107.38,107.35,67.10976306]
[1743978002966,18.79181043,107.37,107.34,9.3158]
[1743978003174,13.08,107.38,107.36,67.10976306]
[1743978003379,31.87181043,107.38,107.37,9.3135]
[1743978004087,0.063,107.41,107.37,99.70716306]
[1743978004378,0.063,107.41,107.38,67.10976306]
[1743978004572,0.063,107.41,107.4,67.10976306]
[1743978005282,0.063,107.41,107.4,76.42066306]
[1743978005864,0.063,107.42,107.4,76.42066306]
[1743978006168,0.063,107.43,107.4,76.42066306]
[1743978006169,0.063,107.43,107.41,67.10976306]
[1743978006353,0.063,107.45,107.42,67.10976306]
[1743978006556,0.063,107.45,107.44,67.10976306]
[1743978006877,0.20516157,107.45,107.42,67.10976306]
[1743978007069,0.20516157,107.45,107.4,38.6192]
[1743978007469,0.063,107.45,107.44,67.10976306]
[1743978009083,0.20516157,107.45,107.4,38.6192]
[1743978009277,0.20516157,107.45,107.42,67.10976306]
[1743978009480,0.14216157,107.44,107.39,9.3118]
[1743978009787,0.063,107.45,107.42,67.10976306]
[1743978009964,0.063,107.45,107.43,67.10976306]
[1743978010973,0.063,107.45,107.44,67.10976306]
[1743978011376,0.14216157,107.5,107.44,82.52286306]
[1743978011683,0.20516157,107.51,107.49,67.10976306]
[1743978011899,19.07613357,107.49,107.43,9.3081]
[1743978012065,20.0,107.5,107.45,67.10976306]
[1743978012266,18.64964886,107.49,107.46,67.10976306]
[1743978012473,18.64964886,107.49,107.47,67.10976306]
[1743978012981,0.42648471,107.49,107.45,67.10976306]
[1743978013382,0.42648471,107.49,107.45,45.06462211]
[1743978013686,18.85481043,107.51,107.45,26.0]
[1743978014174,18.85481043,107.51,107.48,45.06462211]
[1743978014488,18.85481043,107.51,107.47,45.06462211]
[1743978014982,18.85481043,107.51,107.48,45.06462211]